bitfinex/quotes_BTCUSD_20241028
["timestamp","ask_amount","ask_price","bid_price","bid_amount"]
[1730090296320,0.48983362,67701.0,67700.0,0.148532]
[1730090297629,0.40158968,67701.0,67700.0,0.148532]
[1730090297836,0.48987788,67701.0,67700.0,0.148532]
[1730090298038,0.40158541,67701.0,67700.0,0.148532]
[1730090298258,0.51189034,67701.0,67700.0,0.148532]
[1730090298725,0.51201229,67701.0,67700.0,0.148532]
[1730090299156,0.40162279,67701.0,67700.0,0.148532]
[1730090303249,0.53409019,67701.0,67700.0,0.148532]
[1730090304589,0.5340884,67701.0,67700.0,0.148532]
[1730090305228,0.401621,67701.0,67700.0,0.148532]
[1730090305441,0.157824,67701.0,67700.0,0.148532]
[1730090305670,0.32119833,67701.0,67691.0,0.005]
[1730090305898,0.32119833,67701.0,67694.0,0.21984948]
[1730090305899,0.13276799,67697.0,67694.0,0.21984948]
[1730090306131,0.34594571,67696.0,67695.0,0.443163]
[1730090306363,0.35054403,67696.0,67695.0,0.443163]
[1730090306621,0.21777604,67696.0,67695.0,0.443163]
[1730090307113,0.21777604,67696.0,67695.0,0.69116211]
[1730090307114,0.21778032,67696.0,67695.0,0.69116211]
[1730090308003,0.213182,67696.0,67695.0,0.69216211]
[1730090308224,0.2177856,67696.0,67695.0,0.69216211]
[1730090309141,0.2177856,67696.0,67695.0,0.69516211]
[1730090310692,0.20394963,67696.0,67695.0,0.69516211]
[1730090310910,0.21779755,67696.0,67695.0,0.69516211]
[1730090312930,0.20394963,67696.0,67695.0,0.69516211]
[1730090314267,0.16797793,67696.0,67695.0,0.69516211]
[1730090314490,0.20397951,67696.0,67695.0,0.69516211]
[1730090314716,0.17722105,67696.0,67695.0,0.69516211]
[1730090314950,0.21782362,67696.0,67695.0,0.69516211]
[1730090315165,0.21322259,67696.0,67695.0,0.69516211]
[1730090315391,0.21782494,67696.0,67695.0,0.69516211]
[1730090316444,0.21782494,67696.0,67695.0,0.69598411]
[1730090318038,0.21781853,67696.0,67695.0,0.69598411]
[1730090321450,0.21781844,67696.0,67695.0,0.69598411]
[1730090321892,0.20397357,67696.0,67695.0,0.69598411]
[1730090322112,0.21793022,67696.0,67695.0,0.69598411]
[1730090322326,0.21793291,67696.0,67695.0,0.69598411]
[1730090325048,0.21793332,67696.0,67695.0,0.69598411]
[1730090325557,0.21793329,67696.0,67695.0,0.69598411]
[1730090332273,0.18193353,67696.0,67695.0,0.69598411]
[1730090332479,0.21792873,67696.0,67695.0,0.69598411]
[1730090332925,0.21792871,67696.0,67695.0,0.69598411]
[1730090336237,0.21799043,67696.0,67695.0,0.69598411]
[1730090340956,0.21799043,67696.0,67695.0,0.60348881]
[1730090341398,0.31599043,67696.0,67695.0,0.60348881]
[1730090342104,0.27999726,67696.0,67695.0,0.60048881]
[1730090342324,0.31600214,67696.0,67695.0,0.60248881]
[1730090342545,0.31600214,67696.0,67695.0,0.60048881]
[1730090342767,0.31600214,67696.0,67695.0,0.59948881]
[1730090343912,0.15245527,67696.0,67695.0,0.59948881]
[1730090344147,0.14260723,67696.0,67695.0,0.59948881]
[1730090344644,0.13800488,67696.0,67695.0,0.59948881]
[1730090344881,0.43647629,67696.0,67695.0,0.59948881]
[1730090345117,0.45031637,67696.0,67695.0,0.59948881]
[1730090345333,0.45503275,67696.0,67695.0,0.59948881]
[1730090346000,0.44118609,67696.0,67695.0,0.59948881]
[1730090346228,0.45502598,67696.0,67695.0,0.59948881]
[1730090347159,0.21026791,67696.0,67695.0,0.59948881]
[1730090349208,0.21025283,67696.0,67695.0,0.59948881]
[1730090352849,0.17425383,67696.0,67695.0,0.59948881]
[1730090353087,0.19640434,67696.0,67695.0,0.59948881]
[1730090353339,0.21024943,67696.0,67695.0,0.59948881]
[1730090354215,0.17425383,67696.0,67695.0,0.59948881]
[1730090355768,0.18809755,67696.0,67695.0,0.59948881]
[1730090358085,0.18810442,67696.0,67695.0,0.59948881]
[1730090362345,0.36110442,67696.0,67695.0,0.148543]
[1730090362585,0.36110442,67696.0,67695.0,0.000822]
[1730090362586,0.36109125,67696.0,67695.0,0.000822]
[1730090362807,0.51060544,67696.0,67695.0,0.000822]
[1730090363029,0.095,67695.0,67692.0,0.147727]
[1730090363251,0.095,67693.0,67692.0,0.147727]
[1730090363491,0.27237487,67693.0,67692.0,0.147727]
[1730090363970,0.27709858,67693.0,67692.0,0.147727]
[1730090364644,0.27709858,67693.0,67692.0,0.148727]
[1730090366031,0.4108943,67693.0,67692.0,0.148727]
[1730090366479,0.43302066,67693.0,67692.0,0.148727]
[1730090366702,0.43202066,67693.0,67692.0,0.148727]
[1730090366921,0.29922494,67693.0,67692.0,0.2412223]
[1730090367139,0.30322494,67693.0,67692.0,0.2412223]
[1730090367355,0.30322494,67693.0,67692.0,0.2402223]
[1730090367796,0.30522494,67693.0,67692.0,0.2402223]
[1730090368216,0.21022494,67693.0,67692.0,0.2402223]
[1730090368650,0.21022494,67693.0,67692.0,0.147727]
[1730090373401,0.21022494,67693.0,67692.0,0.2402223]
[1730090373641,0.21022494,67693.0,67692.0,0.2410443]
[1730090375486,0.21022494,67693.0,67692.0,0.39654811]
[1730090375672,0.32084573,67693.0,67692.0,0.39654811]
[1730090376305,0.31684573,67693.0,67692.0,0.39654811]
[1730090376515,0.31684573,67693.0,67692.0,0.39854811]
[1730090376733,0.31665581,67693.0,67692.0,0.39854811]
[1730090377007,0.20603392,67693.0,67692.0,0.39854811]
[1730090377467,0.20403392,67693.0,67692.0,0.39854811]
[1730090377656,0.20403392,67693.0,67692.0,0.40254811]
[1730090378332,0.20403392,67693.0,67692.0,0.40054811]
[1730090378542,0.20403392,67693.0,67692.0,0.39654811]
[1730090378788,0.20403392,67693.0,67692.0,0.39854811]
[1730090379003,0.20603392,67693.0,67692.0,0.39854811]
[1730090379893,0.20603392,67693.0,67692.0,0.39654811]
[1730090380106,0.20903392,67693.0,67692.0,0.39654811]
[1730090381940,0.20902277,67693.0,67692.0,0.39654811]
[1730090383898,0.20902602,67693.0,67692.0,0.39654811]
[1730090385688,0.20902602,67693.0,67692.0,0.30405281]
[1730090385918,0.20902602,67693.0,67692.0,0.39654811]
[1730090387431,0.17306384,67693.0,67692.0,0.39654811]
[1730090387661,0.20903259,67693.0,67692.0,0.39654811]
[1730090388560,0.20903533,67693.0,67692.0,0.39654811]
[1730090391725,0.20904563,67693.0,67692.0,0.39654811]
[1730090398748,0.20905471,67693.0,67692.0,0.39654811]
[1730090400101,0.20905471,67693.0,67692.0,0.30405281]
[1730090400557,0.30415471,67693.0,67692.0,0.29905281]
[1730090400790,0.30415471,67693.0,67692.0,0.148549]
[1730090401024,0.30415471,67693.0,67692.0,0.000822]
[1730090401257,0.26816384,67693.0,67692.0,0.000822]
[1730090401487,0.30415621,67693.0,67692.0,0.000822]
[1730090401737,0.26816384,67693.0,67689.0,0.147734]
[1730090401966,0.13280858,67690.0,67689.0,0.15050381]
[1730090402196,0.33212887,67690.0,67689.0,0.29823781]
[1730090402459,0.33678556,67690.0,67689.0,0.29823781]
[1730090402689,0.20397698,67690.0,67689.0,0.29823781]
[1730090403140,0.33678556,67690.0,67689.0,0.29923781]
[1730090403362,0.33678556,67690.0,67689.0,0.29823781]
[1730090403773,0.33678556,67690.0,67689.0,0.29923781]
[1730090404041,0.33678395,67690.0,67689.0,0.29923781]
[1730090404733,0.33678134,67690.0,67689.0,0.29923781]
[1730090404973,0.20397588,67690.0,67689.0,0.29923781]
[1730090405420,0.33678446,67690.0,67689.0,0.29923781]
[1730090405643,0.20397588,67690.0,67689.0,0.29923781]
[1730090406066,0.20397588,67690.0,67689.0,0.29823781]
[1730090407723,0.33685422,67690.0,67689.0,0.29823781]
[1730090407947,0.33785422,67690.0,67689.0,0.29823781]
[1730090408396,0.33685422,67690.0,67689.0,0.29823781]
[1730090408615,0.20397588,67690.0,67689.0,0.29923781]
[1730090408881,0.20897588,67690.0,67689.0,0.29923781]
[1730090409105,0.21297588,67690.0,67689.0,0.29923781]
[1730090410461,0.21297588,67690.0,67689.0,0.30005981]
[1730090412055,0.21296746,67690.0,67689.0,0.30005981]
[1730090412520,0.21296873,67690.0,67689.0,0.30005981]
[1730090416663,0.19913338,67690.0,67689.0,0.30005981]
[1730090417701,0.03579325,67690.0,67689.0,0.30005981]
[1730090417916,0.1770926,67690.0,67689.0,0.30005981]
[1730090418132,0.20840502,67690.0,67689.0,0.30005981]
[1730090418343,0.2130816,67690.0,67689.0,0.30005981]
[1730090425994,0.21306199,67690.0,67689.0,0.30005981]
[1730090427352,0.21307991,67690.0,67689.0,0.30005981]
[1730090428042,0.21309329,67690.0,67689.0,0.30005981]
[1730090428947,0.1771108,67690.0,67689.0,0.30005981]
[1730090429166,0.21309425,67690.0,67689.0,0.30005981]
[1730090431367,0.34591698,67690.0,67689.0,0.30005981]
[1730090431573,0.21309425,67690.0,67689.0,0.30005981]
[1730090431811,0.21309971,67690.0,67689.0,0.30005981]
[1730090432013,0.34592688,67690.0,67689.0,0.30005981]
[1730090432444,0.30994343,67690.0,67689.0,0.30005981]
[1730090432663,0.34592887,67690.0,67689.0,0.30005981]
[1730090432870,0.3085017,67690.0,67689.0,0.30005981]
[1730090433092,0.44132456,67690.0,67689.0,0.30005981]
[1730090433975,0.3085017,67690.0,67689.0,0.149556]
[1730090434210,0.3085017,67690.0,67687.0,0.295477]
[1730090434660,0.19942512,67689.0,67688.0,0.147735]
[1730090435147,0.20513708,67689.0,67688.0,0.147735]
[1730090435367,0.20513708,67689.0,67686.0,0.000822]
[1730090435368,0.179,67688.0,67686.0,0.000822]
[1730090435588,0.30442771,67687.0,67686.0,0.000822]
[1730090436539,0.30435123,67687.0,67686.0,0.000822]
[1730090436769,0.30435123,67687.0,67686.0,0.148563]
[1730090437036,0.30535123,67687.0,67686.0,0.148563]
[1730090437508,0.30531508,67687.0,67686.0,0.148563]
[1730090438194,0.30831508,67687.0,67686.0,0.148563]
[1730090438648,0.30831508,67687.0,67686.0,0.000822]
[1730090439590,0.30830466,67687.0,67686.0,0.000822]
[1730090443314,0.30829881,67687.0,67686.0,0.000822]
[1730090445100,0.45765945,67687.0,67686.0,0.000822]
[1730090445341,0.30829881,67687.0,67686.0,0.000822]
[1730090445572,0.45765945,67687.0,67686.0,0.000822]
[1730090446268,0.30829881,67687.0,67686.0,0.000822]
[1730090446958,0.27236579,67687.0,67686.0,0.000822]
[1730090447174,0.30828636,67687.0,67686.0,0.000822]
[1730090447653,0.30528636,67687.0,67686.0,0.000822]
[1730090448090,0.31528636,67687.0,67686.0,0.000822]
[1730090448822,0.32528636,67687.0,67686.0,0.001822]
[1730090449257,0.32528636,67687.0,67686.0,0.149563]
[1730090449719,0.32528636,67687.0,67684.0,0.147743]
[1730090449928,0.11053449,67685.0,67684.0,0.147743]
[1730090450159,0.30981826,67685.0,67684.0,0.147743]
[1730090450379,0.204812,67685.0,67684.0,0.147743]
[1730090450605,0.31533376,67685.0,67684.0,0.147743]
[1730090451034,0.204812,67685.0,67684.0,0.147743]
[1730090451891,0.212812,67685.0,67684.0,0.147743]
[1730090452111,0.32333376,67685.0,67684.0,0.148745]
[1730090452324,0.32333376,67685.0,67684.0,0.147745]
[1730090452545,0.32333376,67685.0,67684.0,0.148745]
[1730090452785,0.33133376,67685.0,67684.0,0.148745]
[1730090453034,0.220812,67685.0,67684.0,0.148745]
[1730090454602,0.22081119,67685.0,67684.0,0.148745]
[1730090457926,0.22081119,67685.0,67684.0,0.149567]
[1730090459713,0.05761874,67685.0,67684.0,0.149567]
[1730090459928,0.22079374,67685.0,67684.0,0.149567]
[1730090460596,0.22079374,67685.0,67684.0,0.001822]
[1730090461042,0.22079374,67685.0,67684.0,0.149567]
[1730090461261,0.18487398,67685.0,67684.0,0.149567]
[1730090461493,0.19869764,67685.0,67684.0,0.149567]
[1730090461725,0.2208155,67685.0,67684.0,0.149567]
[1730090462408,0.2208155,67685.0,67684.0,0.001822]
[1730090463094,0.35334789,67685.0,67684.0,0.001822]
[1730090463321,0.22077155,67685.0,67684.0,0.001822]
[1730090463553,0.35334176,67685.0,67684.0,0.001822]
[1730090464721,0.35334176,67685.0,67683.0,0.147746]
[1730090464722,0.22077155,67685.0,67683.0,0.14732367]
[1730090464947,0.19907257,67684.0,67683.0,0.14732367]
[1730090465400,0.20433047,67684.0,67683.0,0.14732367]
[1730090465835,0.20433047,67684.0,67679.0,0.295511]
[1730090466066,0.19907257,67683.0,67674.0,0.295534]
[1730090466307,0.19907257,67682.0,67679.0,0.147755]
[1730090466555,0.19907257,67681.0,67680.0,0.147752]
[1730090466984,0.20432832,67681.0,67680.0,0.147752]
[1730090467880,0.20932832,67681.0,67680.0,0.147752]
[1730090468571,0.1733868,67681.0,67680.0,0.147752]
[1730090469022,0.21334863,67681.0,67680.0,0.147752]
[1730090469485,0.20834863,67681.0,67680.0,0.147752]
[1730090469927,0.21234863,67681.0,67680.0,0.147752]
[1730090470375,0.21934863,67681.0,67680.0,0.148752]
[1730090472206,0.30934863,67681.0,67680.0,0.001]
[1730090472424,0.44191963,67681.0,67680.0,0.001]
[1730090472647,0.30934568,67681.0,67680.0,0.001]
[1730090476047,0.27338385,67681.0,67680.0,0.001]
[1730090476268,0.30932069,67681.0,67680.0,0.001]
[1730090476956,0.30936202,67681.0,67680.0,0.001]
[1730090479196,0.4585455,67681.0,67680.0,0.001]
[1730090479672,0.30936202,67681.0,67674.0,0.147765]
[1730090479901,0.13265161,67676.0,67675.0,0.147763]
[1730090480116,0.29582104,67676.0,67675.0,0.147763]
[1730090480336,0.20434529,67676.0,67675.0,0.147763]
[1730090480562,0.19052699,67676.0,67675.0,0.147763]
[1730090480778,0.20434526,67676.0,67675.0,0.147763]
[1730090481652,0.20441672,67676.0,67675.0,0.147763]
[1730090482154,0.33708233,67676.0,67675.0,0.147763]
[1730090482373,0.33708233,67676.0,67675.0,0.148585]
[1730090482374,0.33908233,67676.0,67675.0,0.148585]
[1730090482827,0.33708233,67676.0,67675.0,0.148585]
[1730090483050,0.34008233,67676.0,67675.0,0.148585]
[1730090483505,0.34508233,67676.0,67675.0,0.148585]
[1730090483939,0.34008233,67676.0,67675.0,0.148585]
[1730090484390,0.34808233,67676.0,67675.0,0.148585]
[1730090484912,0.35408233,67676.0,67675.0,0.149585]
[1730090485155,0.35108233,67676.0,67675.0,0.000822]
[1730090485382,0.31551672,67676.0,67675.0,0.001822]
[1730090486045,0.30751672,67676.0,67675.0,0.001822]
[1730090486260,0.29451672,67676.0,67675.0,0.000822]
[1730090486493,0.30351672,67676.0,67675.0,0.001822]
[1730090486714,0.31151672,67676.0,67675.0,0.001822]
[1730090486936,0.30251672,67676.0,67675.0,0.001822]
[1730090487153,0.31451672,67676.0,67675.0,0.001822]
[1730090487380,0.27858922,67676.0,67675.0,0.001822]
[1730090487604,0.31451404,67676.0,67675.0,0.001822]
[1730090487839,0.30651404,67676.0,67675.0,0.000822]
[1730090488070,0.31751404,67676.0,67675.0,0.001822]
[1730090488532,0.30651404,67676.0,67675.0,0.000822]
[1730090488794,0.30751404,67676.0,67675.0,0.001822]
[1730090489017,0.32051404,67676.0,67675.0,0.001822]
[1730090491080,0.15727315,67676.0,67675.0,0.001822]
[1730090491322,0.32044948,67676.0,67675.0,0.001822]
[1730090493579,0.23034948,67676.0,67675.0,0.001822]
[1730090494753,0.23034948,67676.0,67672.0,0.147769]
[1730090495002,0.23034948,67676.0,67666.0,0.000822]
[1730090495003,0.097,67674.0,67666.0,0.000822]
[1730090495229,0.1326142,67670.0,67668.0,0.21984948]
[1730090495456,0.20428674,67669.0,67666.0,0.000822]
[1730090495688,0.03593538,67668.0,67666.0,0.000822]
[1730090495918,0.03593538,67667.0,67666.0,0.000822]
[1730090496146,0.19909101,67667.0,67666.0,0.000822]
[1730090496856,0.19909101,67667.0,67666.0,0.148606]
[1730090498239,0.20309101,67667.0,67666.0,0.148606]
[1730090498477,0.19907627,67667.0,67666.0,0.148606]
[1730090498701,0.20607627,67667.0,67666.0,0.149606]
[1730090499207,0.20607627,67667.0,67666.0,0.001822]
[1730090499633,0.21925294,67667.0,67666.0,0.001822]
[1730090500354,0.21919917,67667.0,67666.0,0.001822]
[1730090501271,0.21919917,67667.0,67666.0,0.149606]
[1730090501716,0.19191749,67667.0,67666.0,0.149606]
[1730090502157,0.17810186,67667.0,67666.0,0.149606]
[1730090502375,0.19191732,67667.0,67666.0,0.001822]
[1730090502615,0.19191629,67667.0,67666.0,0.001822]
[1730090503290,0.19191629,67667.0,67666.0,0.149606]
[1730090503949,0.19191629,67667.0,67666.0,0.001822]
[1730090506002,0.17810186,67667.0,67666.0,0.001822]
[1730090506232,0.19708807,67667.0,67666.0,0.001822]
[1730090506680,0.21918764,67667.0,67666.0,0.001822]
[1730090508744,0.35174026,67667.0,67666.0,0.001822]
[1730090509161,0.21918764,67667.0,67666.0,0.001822]
[1730090509802,0.2191422,67667.0,67663.0,0.000822]
[1730090510028,0.19896853,67666.0,67663.0,0.000822]
[1730090510254,0.20414056,67665.0,67663.0,0.000822]
[1730090510461,0.19896853,67664.0,67663.0,0.000822]
[1730090512181,0.20296853,67664.0,67663.0,0.000822]
[1730090512616,0.20796853,67664.0,67663.0,0.000822]
[1730090513720,0.17205642,67664.0,67663.0,0.000822]
[1730090513935,0.20797666,67664.0,67663.0,0.000822]
[1730090514159,0.23008141,67664.0,67663.0,0.000822]
[1730090514411,0.20797665,67664.0,67663.0,0.000822]
[1730090514632,0.20797665,67664.0,67663.0,0.148613]
[1730090518873,0.18587189,67664.0,67663.0,0.148613]
[1730090519097,0.1859427,67664.0,67663.0,0.148613]
[1730090522727,0.18595702,67664.0,67663.0,0.148613]
[1730090523609,0.18595702,67664.0,67663.0,0.39161211]
[1730090523611,0.18595702,67664.0,67663.0,0.47431211]
[1730090523843,0.29646914,67664.0,67663.0,0.56731211]
[1730090524060,0.18597138,67664.0,67663.0,0.56731211]
[1730090524289,0.27437663,67664.0,67663.0,0.56731211]
[1730090525287,0.27437663,67664.0,67663.0,0.57231211]
[1730090526647,0.27439554,67664.0,67663.0,0.57231211]
[1730090527127,0.0891501,67664.0,67663.0,0.57231211]
[1730090527599,0.06705105,67664.0,67663.0,0.57231211]
[1730090527824,0.02283261,67664.0,67663.0,0.47981681]
[1730090530255,0.01783261,67664.0,67663.0,0.47981681]
[1730090530486,0.01383261,67664.0,67663.0,0.47981681]
[1730090530716,0.01383261,67664.0,67663.0,0.48381681]
[1730090531169,0.01383261,67664.0,67663.0,0.47981681]
[1730090531397,0.001644,67666.0,67665.0,0.328486]
[1730090531627,0.01546309,67666.0,67665.0,0.57148511]
[1730090533696,0.01546309,67666.0,67665.0,0.57548511]
[1730090535278,0.01545703,67666.0,67665.0,0.57548511]
[1730090535971,0.01545703,67666.0,67665.0,0.69098041]
[1730090536192,0.001644,67666.0,67665.0,0.80298041]
[1730090536428,0.001644,67666.0,67665.0,0.70848511]
[1730090537855,0.001644,67666.0,67665.0,0.80098041]
[1730090538088,0.001644,67666.0,67665.0,0.71048511]
[1730090541057,0.001644,67666.0,67665.0,0.80298041]
[1730090541278,0.001644,67666.0,67665.0,0.71048511]
[1730090542197,0.001644,67666.0,67665.0,0.80298041]
[1730090542426,0.001644,67666.0,67665.0,0.80380241]
[1730090542894,0.001644,67666.0,67665.0,0.71130711]
[1730090545440,0.001644,67666.0,67665.0,0.70130711]
[1730090545664,0.001644,67666.0,67665.0,0.71130711]
[1730090548338,0.001644,67666.0,67665.0,0.77042811]
[1730090549917,0.001644,67666.0,67665.0,0.76842811]
[1730090552057,0.001644,67666.0,67665.0,0.77042811]
[1730090554600,0.001644,67666.0,67665.0,0.76842811]
[1730090556604,0.001644,67666.0,67665.0,0.77042811]
[1730090557273,0.001644,67666.0,67665.0,0.76842811]
[1730090558862,0.001644,67666.0,67665.0,0.77042811]
[1730090565615,0.01548239,67666.0,67665.0,0.86292341]
[1730090565882,0.001644,67666.0,67665.0,0.86292341]
[1730090566550,0.001644,67675.0,67674.0,0.338567]
[1730090566776,0.2353307,67675.0,67674.0,0.79706141]
[1730090567009,0.01548122,67675.0,67674.0,0.79706141]
[1730090567231,0.01548122,67675.0,67674.0,0.79906141]
[1730090567451,0.001644,67675.0,67674.0,0.79906141]
[1730090568820,0.001644,67675.0,67674.0,0.80206141]
[1730090569298,0.001644,67675.0,67674.0,0.79906141]
[1730090569528,0.001644,67675.0,67674.0,0.79706141]
[1730090569976,0.001644,67675.0,67674.0,0.79906141]
[1730090570442,0.001644,67675.0,67674.0,0.79706141]
[1730090570655,0.001644,67675.0,67674.0,0.79906141]
[1730090571124,0.001644,67675.0,67674.0,0.80406141]
[1730090571558,0.001644,67675.0,67674.0,0.80206141]
[1730090572706,0.001644,67675.0,67674.0,0.81286863]
[1730090573376,0.001644,67675.0,67674.0,0.81486863]
[1730090576295,0.001644,67675.0,67674.0,0.90736393]
[1730090576521,0.001644,67680.0,67679.0,0.154756]
[1730090576762,0.001644,67680.0,67679.0,0.61325041]
[1730090577466,0.001644,67680.0,67679.0,0.59905511]
[1730090577697,0.001644,67680.0,67679.0,0.69305511]
[1730090577918,0.001644,67680.0,67679.0,0.59855981]
[1730090578164,0.001644,67680.0,67679.0,0.69105511]
[1730090578395,0.001644,67680.0,67679.0,0.60005511]
[1730090579334,0.001644,67680.0,67679.0,0.60205511]
[1730090579557,0.001644,67680.0,67679.0,0.60405511]
[1730090580046,0.001644,67680.0,67679.0,0.52575511]
[1730090581167,0.001644,67680.0,67679.0,0.52375511]
[1730090581408,0.001644,67680.0,67679.0,0.43125981]
[1730090581645,0.001644,67680.0,67679.0,0.52375511]
[1730090582886,0.001644,67680.0,67679.0,0.52175511]
[1730090583103,0.001644,67680.0,67679.0,0.52375511]
[1730090583786,0.001644,67680.0,67679.0,0.52075511]
[1730090584006,0.001644,67680.0,67679.0,0.52375511]
[1730090587189,0.001644,67680.0,67679.0,0.43125981]
[1730090587644,0.001644,67680.0,67679.0,0.40825981]
[1730090587897,0.173744,67680.0,67679.0,0.40825981]
[1730090588108,0.18754802,67680.0,67679.0,0.40825981]
[1730090588332,0.18754802,67680.0,67679.0,0.40325981]
[1730090588806,0.18754802,67680.0,67679.0,0.40725981]
[1730090589280,0.18754802,67680.0,67679.0,0.40525981]
[1730090589500,0.18754802,67680.0,67679.0,0.40625981]
[1730090591494,0.173744,67680.0,67679.0,0.40625981]
[1730090591771,0.1875551,67680.0,67679.0,0.40625981]
[1730090592448,0.0154551,67680.0,67679.0,0.40625981]
[1730090592669,0.001644,67680.0,67679.0,0.40625981]
[1730090593542,0.01546041,67680.0,67679.0,0.40625981]
[1730090595152,0.01546041,67680.0,67679.0,0.49875511]
[1730090595385,0.001644,67680.0,67679.0,0.49875511]
[1730090595665,0.10706751,67680.0,67679.0,0.49875511]
[1730090599142,0.10706921,67680.0,67679.0,0.49875511]
[1730090600333,0.093244,67680.0,67679.0,0.49875511]
[1730090600575,0.10706986,67680.0,67679.0,0.49875511]
[1730090603177,0.10707019,67680.0,67679.0,0.49875511]
[1730090604890,0.11167785,67680.0,67679.0,0.49875511]
[1730090606306,0.09785166,67680.0,67679.0,0.49875511]
[1730090606535,0.1116774,67680.0,67679.0,0.49875511]
[1730090608408,0.1116774,67680.0,67679.0,0.40625981]
[1730090608629,0.1116774,67680.0,67679.0,0.39875511]
[1730090609309,0.1116774,67680.0,67679.0,0.30625981]
[1730090609761,0.1906774,67680.0,67679.0,0.30125981]
[1730090609988,0.23487709,67680.0,67679.0,0.30125981]
[1730090610221,0.1906774,67680.0,67679.0,0.30125981]
[1730090610672,0.1906774,67680.0,67679.0,0.30625981]
[1730090611416,0.2570413,67680.0,67679.0,0.30625981]
[1730090611646,0.23492048,67680.0,67679.0,0.30625981]
[1730090612313,0.1906774,67680.0,67679.0,0.30625981]
[1730090612513,0.23492176,67680.0,67679.0,0.30625981]
[1730090613796,0.23492819,67680.0,67679.0,0.30625981]
[1730090616055,0.19068383,67680.0,67679.0,0.30625981]
[1730090616270,0.23491872,67680.0,67679.0,0.30625981]
[1730090616488,0.23031106,67680.0,67679.0,0.30625981]
[1730090616731,0.18607617,67680.0,67679.0,0.30125981]
[1730090616962,0.25704061,67680.0,67679.0,0.30125981]
[1730090617179,0.19068828,67680.0,67679.0,0.30125981]
[1730090617420,0.1642053,67680.0,67679.0,0.30125981]
[1730090617643,0.17803891,67680.0,67679.0,0.30025981]
[1730090618527,0.17803891,67680.0,67679.0,0.29825981]
[1730090618795,0.17803891,67680.0,67679.0,0.29925981]
[1730090619684,0.11168972,67680.0,67679.0,0.29925981]
[1730090620776,0.1780315,67680.0,67679.0,0.29925981]
[1730090620986,0.11168972,67680.0,67679.0,0.29925981]
[1730090621648,0.1780371,67680.0,67679.0,0.29925981]
[1730090621882,0.11168972,67680.0,67679.0,0.29925981]
[1730090622619,0.17804168,67680.0,67679.0,0.29925981]
[1730090623269,0.11168972,67680.0,67679.0,0.29925981]
[1730090624547,0.27501603,67680.0,67679.0,0.29925981]
[1730090624990,0.26118242,67680.0,67679.0,0.29925981]
[1730090625204,0.27501685,67680.0,67679.0,0.29925981]
[1730090625422,0.36353626,67680.0,67679.0,0.29925981]
[1730090625639,0.27193626,67680.0,67679.0,0.30425981]
[1730090626107,0.18343591,67680.0,67679.0,0.30425981]
[1730090626335,0.27193626,67680.0,67679.0,0.30425981]
[1730090629013,0.25810183,67680.0,67679.0,0.30425981]
[1730090629223,0.27193606,67680.0,67679.0,0.30425981]
[1730090629680,0.27194582,67680.0,67679.0,0.30425981]
[1730090630106,0.27196384,67680.0,67679.0,0.30425981]
[1730090630547,0.18345373,67680.0,67679.0,0.30425981]
[1730090632064,0.27197509,67680.0,67679.0,0.30425981]
[1730090632497,0.18345373,67680.0,67679.0,0.30425981]
[1730090632710,0.1696195,67680.0,67679.0,0.30425981]
[1730090632924,0.18345494,67680.0,67679.0,0.39675511]
[1730090633402,0.18345494,67680.0,67679.0,0.30425981]
[1730090633626,0.18345494,67680.0,67679.0,0.39675511]
[1730090634735,0.02009155,67680.0,67679.0,0.39675511]
[1730090634941,0.18350055,67680.0,67679.0,0.39675511]
[1730090635149,0.17888844,67680.0,67679.0,0.39675511]
[1730090635356,0.18350055,67680.0,67679.0,0.39675511]
[1730090635762,0.29416908,67680.0,67679.0,0.39675511]
[1730090636237,0.29416908,67680.0,67679.0,0.39575511]
[1730090636446,0.28033364,67680.0,67679.0,0.39575511]
[1730090636658,0.29417132,67680.0,67679.0,0.39575511]
[1730090636871,0.29517132,67680.0,67679.0,0.39575511]
[1730090639740,0.29519015,67680.0,67679.0,0.39575511]
[1730090640609,0.29519302,67680.0,67679.0,0.39575511]
[1730090641298,0.18451689,67680.0,67679.0,0.30325981]
[1730090641980,0.27701689,67680.0,67679.0,0.30325981]
[1730090647006,0.2770234,67680.0,67679.0,0.30325981]
[1730090647733,0.2770234,67680.0,67679.0,0.29825981]
[1730090648163,0.40983476,67680.0,67679.0,0.29825981]
[1730090649444,0.2770234,67680.0,67679.0,0.29825981]
[1730090649663,0.40983476,67680.0,67679.0,0.29825981]
[1730090652289,0.24641453,67680.0,67679.0,0.29825981]
[1730090652501,0.27703428,67680.0,67679.0,0.29825981]
[1730090652704,0.40985449,67680.0,67679.0,0.29825981]
[1730090653597,0.27703428,67680.0,67679.0,0.29825981]
[1730090655150,0.27702079,67680.0,67679.0,0.29825981]
[1730090659033,0.27701723,67680.0,67679.0,0.29825981]
[1730090660392,0.26318722,67680.0,67679.0,0.29825981]
[1730090661986,0.26313714,67680.0,67679.0,0.29825981]
[1730090663740,0.2769663,67680.0,67679.0,0.29825981]
[1730090664421,0.27696658,67680.0,67679.0,0.29825981]
[1730090665782,0.2753225,67680.0,67679.0,0.29825981]
[1730090666707,0.27531551,67680.0,67679.0,0.29825981]
[1730090669159,0.11194147,67680.0,67679.0,0.29825981]
[1730090669417,0.09811203,67680.0,67679.0,0.29825981]
[1730090669664,0.10733216,67680.0,67679.0,0.29825981]
[1730090669876,0.27070542,67680.0,67679.0,0.29825981]
[1730090670303,0.27521588,67680.0,67679.0,0.29825981]
[1730090670732,0.11184262,67680.0,67679.0,0.29825981]
[1730090672075,0.11184262,67680.0,67679.0,0.147756]
[1730090672540,0.13397565,67680.0,67679.0,0.147756]
[1730090672762,0.13561765,67680.0,67679.0,0.147756]
[1730090673205,0.13562077,67680.0,67679.0,0.147756]
[1730090673689,0.13562011,67680.0,67679.0,0.147756]
[1730090675078,0.13562011,67680.0,67679.0,0.169594]
[1730090675749,0.11348617,67680.0,67679.0,0.021838]
[1730090676007,0.11348617,67680.0,67679.0,0.169594]
[1730090676237,0.11348617,67680.0,67679.0,0.147756]
[1730090676684,0.11348617,67680.0,67679.0,0.169594]
[1730090676900,0.11348744,67680.0,67679.0,0.021838]
[1730090677137,0.11348744,67680.0,67679.0,0.147756]
[1730090678051,0.11348744,67680.0,67679.0,0.17014032]
[1730090678473,0.11348744,67680.0,67679.0,0.02238432]
[1730090679129,0.11348744,67680.0,67676.0,0.16961162]
[1730090679352,0.01383498,67679.0,67676.0,0.147761]
[1730090679586,0.03597113,67678.0,67675.0,0.148585]
[1730090679839,0.03597113,67677.0,67675.0,0.15132481]
[1730090680074,0.0929,67677.0,67676.0,0.147761]
[1730090680297,0.12886861,67677.0,67676.0,0.17161162]